bitfinex-derivatives/quotes_SOLF0:USTF0_20250413
["timestamp","ask_amount","ask_price","bid_price","bid_amount"]
[1744531328863,28.2,128.45,128.37,35.9912]
[1744531329067,6.2342,128.44,128.37,35.9912]
[1744531329366,6.2342,128.44,128.37,28.2]
[1744531329760,6.2342,128.44,128.35,6.1526]
[1744531329961,0.05308947,128.42,128.39,0.05181956]
[1744531330161,28.25308947,128.42,128.39,0.05181956]
[1744531330467,7.7901,128.4,128.39,0.05181956]
[1744531331065,28.25308947,128.42,128.31,64.84312861]
[1744531331267,28.2,128.41,128.31,70.92792861]
[1744531331565,7.7915,128.37,128.33,7.7932]
[1744531331769,7.7915,128.37,128.31,70.92792861]
[1744531332169,7.7915,128.37,128.31,34.2848]
[1744531332366,0.05649659,128.35,128.33,0.04932946]
[1744531334471,0.05649659,128.35,128.33,7.84302946]
[1744531336172,0.05649659,128.35,128.34,7.7932]
[1744531338175,7.7905,128.39,128.36,7.7919]
[1744531338370,36.0096,128.4,128.36,7.7919]
[1744531338669,36.0096,128.4,128.34,28.22]
[1744531339275,28.22,128.4,128.35,7.7923]
[1744531339473,0.05521518,128.38,128.36,0.05526508]
[1744531341775,0.05521518,128.38,128.37,7.7913]
[1744531343675,0.05521518,128.38,128.36,7.84696508]
[1744531344378,0.05521518,128.38,128.36,0.05526508]
[1744531346078,7.84591518,128.38,128.36,0.05526508]
[1744531346878,0.05521518,128.38,128.36,7.84716508]
[1744531347877,0.05521518,128.38,128.36,0.05526508]
[1744531348076,7.84601518,128.38,128.36,0.05526508]
[1744531348977,0.05521518,128.38,128.36,7.84716508]
[1744531349981,0.05521518,128.38,128.36,0.05526508]
[1744531352468,0.05521518,128.38,128.36,7.84706508]
[1744531353078,0.05521518,128.38,128.36,0.05526508]
[1744531353582,0.05521518,128.38,128.36,7.84716508]
[1744531356482,0.05521518,128.38,128.36,0.05526508]
[1744531356680,392.22,128.45,128.37,28.22]
[1744531356880,28.22,128.45,128.37,34.4037]
[1744531357680,28.22,128.45,128.4,0.04998076]
[1744531357890,0.05934601,128.42,128.4,0.04998076]
[1744531358487,0.05934601,128.42,128.4,7.83918076]
[1744531359486,0.05934601,128.42,128.41,7.7889]
[1744531360787,0.05934601,128.42,128.4,0.04998076]
[1744531361386,7.7889,128.41,128.4,0.04998076]
[1744531363483,7.84774601,128.42,128.4,0.04998076]
[1744531363688,0.05934601,128.42,128.4,0.04998076]
[1744531364689,7.84804601,128.42,128.4,0.04998076]
[1744531367793,7.7889,128.41,128.4,0.04998076]
[1744531368989,28.25934601,128.42,128.33,28.2]
[1744531369191,28.2,128.42,128.33,28.2]
[1744531369492,7.7912,128.38,128.34,7.7928]
[1744531369792,7.7912,128.38,128.33,28.2]
[1744531370092,0.05243114,128.37,128.35,7.7921]
[1744531370294,7.7903,128.39,128.33,28.2]
[1744531370490,0.05515145,128.37,128.35,0.05745027]
[1744531371287,0.05515145,128.37,128.35,7.84975027]
[1744531371490,28.2,128.42,128.35,0.05745027]
[1744531371888,28.2,128.42,128.36,28.22]
[1744531372393,7.789,128.41,128.37,7.7911]
[1744531372592,7.789,128.41,128.36,28.22]
[1744531372793,0.05333282,128.4,128.38,0.05225397]
[1744531373994,7.84283282,128.4,128.38,0.05225397]
[1744531374193,0.05333282,128.4,128.38,0.05225397]
[1744531374691,28.22,128.39,128.3,1.35556248]
[1744531374994,32.3545,128.39,128.29,36.64312861]
[1744531375194,617.04,128.44,128.29,36.64312861]
[1744531375494,33.77540263,128.43,128.29,36.64312861]
[1744531375693,7.7906,128.39,128.34,7.7926]
[1744531375896,0.05113142,128.37,128.35,0.05423862]
[1744531376097,4.1345,128.43,128.34,4.1467]
[1744531376995,7.7896,128.4,128.36,7.7916]
[1744531377197,0.04986921,128.39,128.37,0.05650616]
[1744531377895,0.04986921,128.39,128.37,7.84760616]
[1744531382902,0.04986921,128.39,128.37,0.05650616]
[1744531384295,0.04986921,128.39,128.37,7.84780616]
[1744531384900,0.04986921,128.39,128.38,7.7907]
[1744531385695,0.04986921,128.39,128.37,7.84760616]
[1744531386401,0.04986921,128.39,128.38,7.7907]
[1744531387103,0.04986921,128.39,128.37,7.84760616]
[1744531387301,0.04986921,128.39,128.37,0.05650616]
[1744531387502,0.04986921,128.39,128.38,7.7907]
[1744531388893,0.04986921,128.39,128.37,0.05650616]
[1744531389101,7.7907,128.38,128.37,0.05650616]
[1744531390200,2.10526921,128.39,128.31,2.0839]
[1744531390400,28.92,128.38,128.3,4.2828]
[1744531390603,33.1761,128.38,128.3,12.078]
[1744531391005,33.1761,128.38,128.3,7.7952]
[1744531391301,33.1761,128.38,128.33,0.05252967]
[1744531391302,0.05245555,128.35,128.33,0.05252967]
[1744531391507,28.92,128.34,128.29,36.64312861]
[1744531391706,7.7949,128.32,128.29,36.64312861]
[1744531391904,28.92,128.34,128.29,36.64312861]
[1744531392201,7.7956,128.3,128.29,36.64312861]
[1744531392412,7.7956,128.3,128.25,28.92]
[1744531392701,28.96901507,128.31,128.28,0.05361856]
[1744531392908,0.04901507,128.31,128.3,7.7956]
[1744531395903,4.3515,128.37,128.33,7.7933]
[1744531396109,364.0,128.45,128.28,28.99361856]
[1744531396110,28.94,128.39,128.29,6.1291]
[1744531396504,7.7907,128.38,128.29,6.1291]
[1744531397207,0.05707311,128.35,128.32,0.05297001]
[1744531397404,0.05707311,128.35,128.32,28.99297001]
[1744531397705,0.05707311,128.35,128.34,7.7932]
[1744531398605,0.05707311,128.35,128.33,7.7936]
[1744531399211,0.05707311,128.35,128.32,0.05297001]
[1744531400415,0.05707311,128.35,128.34,7.7932]
[1744531401917,0.05707311,128.35,128.32,0.05297001]
[1744531402513,7.7932,128.34,128.32,0.05297001]
[1744531402722,0.05707311,128.35,128.32,0.05297001]
[1744531403819,7.7932,128.34,128.32,0.05297001]
[1744531404021,0.05707311,128.35,128.32,0.05297001]
[1744531404420,6.43347311,128.35,128.32,0.05297001]
[1744531404720,7.7938,128.33,128.32,0.05297001]
[1744531409620,37.0138,128.33,128.32,0.05297001]
[1744531412025,7.7951,128.31,128.28,7.7965]
[1744531413128,7.7951,128.31,128.28,7.8485986]
[1744531413129,7.84623506,128.31,128.28,7.8485986]
[1744531413620,0.05113506,128.31,128.28,0.0520986]
[1744531414026,7.84643506,128.31,128.28,7.8485986]
[1744531415129,7.7956,128.3,128.28,7.8485986]
[1744531415329,0.05113506,128.31,128.28,7.8485986]
[1744531415932,7.84653506,128.31,128.28,7.8485986]
[1744531417224,0.05113506,128.31,128.28,0.0520986]
[1744531417735,7.7959,128.3,128.28,7.8488986]
[1744531418032,7.7959,128.3,128.28,0.0520986]
[1744531418931,0.05113506,128.31,128.28,0.0520986]
[1744531419432,0.05113506,128.31,128.3,7.7956]
[1744531419934,7.7926,128.35,128.31,7.7949]
[1744531420133,29.22,128.36,128.31,7.7949]
[1744531420434,7.7933,128.34,128.31,7.7949]
[1744531420936,7.84728663,128.34,128.31,7.84609855]
[1744531423136,0.05398663,128.34,128.31,0.05119855]
[1744531423539,29.22,128.33,128.31,0.05119855]
[1744531424739,0.05398663,128.34,128.31,0.05119855]
[1744531424938,0.05398663,128.34,128.32,7.794]
[1744531426733,0.05398663,128.34,128.33,7.7938]
[1744531428235,37.0104,128.39,128.35,7.792]
[1744531428439,29.22,128.39,128.35,7.792]
[1744531428636,29.22,128.39,128.32,29.22]
[1744531429247,0.05155629,128.37,128.34,0.05957508]
[1744531430248,7.7924,128.36,128.34,0.05957508]
[1744531432650,7.84315629,128.37,128.34,0.05957508]
[1744531433853,7.84315629,128.37,128.34,7.85267508]
[1744531434048,0.05155629,128.37,128.34,0.05957508]
[1744531434549,0.05155629,128.37,128.36,6.73365728]
[1744531436755,7.84295629,128.37,128.35,6.73365728]
[1744531437558,7.7919,128.36,128.34,6.79323236]
[1744531438355,7.84305629,128.37,128.34,14.58633236]
[1744531438653,0.05155629,128.37,128.34,6.79323236]
[1744531439455,7.84325629,128.37,128.34,14.58633236]
[1744531442655,7.792,128.36,128.34,6.79323236]
[1744531442854,0.05155629,128.37,128.34,6.79323236]
[1744531443154,6.78521357,128.37,128.34,0.05957508]
[1744531443358,7.7925,128.35,128.34,0.05957508]
[1744531446360,7.7923,128.36,128.34,0.05957508]
[1744531447059,7.7925,128.35,128.34,0.05957508]
[1744531447451,0.05155629,128.37,128.34,0.05957508]
[1744531447656,0.05155629,128.37,128.35,6.73365728]
[1744531449259,7.7919,128.36,128.35,6.73365728]
[1744531450264,7.7919,128.36,128.34,6.79323236]
[1744531451459,7.7919,128.36,128.34,0.05957508]
[1744531454264,7.84335629,128.37,128.34,7.85257508]
[1744531454466,0.05155629,128.37,128.34,0.05957508]
[1744531454667,7.792,128.36,128.34,0.05957508]
[1744531455169,7.84315629,128.37,128.34,7.85257508]
[1744531457170,7.84315629,128.37,128.34,0.05957508]
[1744531457171,7.792,128.36,128.34,0.05957508]
[1744531462873,7.7925,128.35,128.34,0.05957508]
[1744531473482,7.7943,128.33,128.28,28.96]
[1744531473683,35.69365728,128.35,128.29,7.7959]
[1744531473880,6.73365728,128.33,128.28,35.69365728]
[1744531474578,7.7954,128.31,128.29,0.05079569]
[1744531476181,7.7956,128.3,128.29,0.05079569]
[1744531476682,7.7952,128.31,128.29,0.05079569]
[1744531476878,0.05455189,128.32,128.29,0.05079569]
[1744531477487,7.7954,128.31,128.29,0.05079569]
[1744531477985,7.7956,128.3,128.29,0.05079569]
[1744531478880,0.05455189,128.32,128.29,0.05079569]
[1744531479281,0.05455189,128.32,128.3,6.73365728]
[1744531479482,7.84925189,128.32,128.3,6.73365728]
[1744531482588,7.795,128.31,128.29,0.05079569]
[1744531482887,7.795,128.31,128.29,6.78445297]
[1744531490597,7.795,128.31,128.29,14.58055297]
[1744531491590,7.795,128.31,128.29,6.78445297]
[1744531494791,7.84925189,128.32,128.29,14.58055297]
[1744531495996,7.795,128.31,128.29,6.78445297]
[1744531500401,0.05455189,128.32,128.29,6.78445297]
[1744531500402,7.7956,128.3,128.29,6.78445297]
[1744531500602,0.05455189,128.32,128.29,6.78445297]
[1744531501203,0.05455189,128.32,128.29,0.05079569]
[1744531501505,28.68,128.31,128.29,0.05079569]
[1744531502097,14.52925728,128.3,128.29,0.05079569]
[1744531502297,7.7956,128.3,128.29,0.05079569]
[1744531502598,0.05455189,128.32,128.29,0.05079569]
[1744531503205,7.84935189,128.32,128.29,0.05079569]
[1744531504004,7.795,128.31,128.29,0.05079569]
[1744531504505,0.05455189,128.32,128.29,0.05079569]
[1744531504700,7.84905189,128.32,128.29,0.05079569]
[1744531505505,0.05455189,128.32,128.29,6.78445297]
[1744531506302,0.05455189,128.32,128.29,14.58035297]
[1744531508405,0.05455189,128.32,128.3,7.7955]
[1744531514105,0.05455189,128.32,128.29,14.58055297]
[1744531514408,28.7,128.31,128.29,0.05079569]
[1744531514808,7.7956,128.3,128.29,0.05079569]
[1744531515910,36.4952,128.31,128.29,0.05079569]
[1744531516508,43.22885728,128.31,128.29,0.05079569]
[1744531517008,7.7956,128.3,128.29,0.05079569]
[1744531519108,43.22895728,128.31,128.29,0.05079569]
[1744531521109,35.43365728,128.31,128.29,0.05079569]
[1744531521409,28.7,128.31,128.29,0.05079569]
[1744531521608,28.7,128.31,128.29,7.84669569]
[1744531523409,28.7,128.31,128.29,0.05079569]
[1744531523809,36.495,128.31,128.29,0.05079569]
[1744531525007,28.7,128.31,128.29,7.84679569]
[1744531526913,36.495,128.31,128.29,0.05079569]
[1744531527613,7.7956,128.3,128.29,0.05079569]
[1744531529114,36.4953,128.31,128.29,0.05079569]
[1744531529613,28.7,128.31,128.29,0.05079569]
[1744531529814,7.7956,128.3,128.29,0.05079569]
[1744531530416,36.4951,128.31,128.29,0.05079569]
[1744531532817,28.7,128.31,128.29,7.84689569]
[1744531533012,0.05455189,128.32,128.29,0.05079569]
[1744531533411,0.05455189,128.32,128.3,7.7956]
[1744531533916,7.84905189,128.32,128.29,7.84649569]
[1744531536925,7.7952,128.31,128.29,0.05079569]
[1744531537725,7.7952,128.31,128.29,7.84699569]
[1744531538527,7.7956,128.3,128.29,0.05079569]
[1744531539627,7.7982,128.26,128.23,6.73365728]
[1744531539827,7.7982,128.26,128.23,14.53315728]
[1744531540130,7.7989,128.25,128.23,6.73365728]
[1744531540324,35.39365728,128.28,128.23,6.73365728]
[1744531540622,7.84949637,128.27,128.24,0.04837876]
[1744531541528,7.7981,128.26,128.24,0.04837876]
[1744531543627,7.84969637,128.27,128.24,0.04837876]
[1744531547434,0.05199637,128.27,128.24,6.78203604]
[1744531547828,0.05199637,128.27,128.25,7.7983]
[1744531548733,0.05199637,128.27,128.26,6.73365728]
[1744531549031,0.05199637,128.27,128.25,7.7983]
[1744531549230,0.05199637,128.27,128.25,14.53195728]
[1744531550329,0.05199637,128.27,128.25,6.73365728]
[1744531553731,0.05199637,128.27,128.24,7.84727876]
[1744531553932,0.05199637,128.27,128.24,0.04837876]
[1744531554333,7.7984,128.26,128.24,0.04837876]
[1744531556434,0.05199637,128.27,128.24,0.04837876]
[1744531556640,0.05199637,128.27,128.25,6.73365728]
[1744531557539,0.05199637,128.27,128.25,35.41365728]
[1744531557936,0.05199637,128.27,128.26,7.798]
[1744531558440,28.68,128.33,128.25,35.41365728]
[1744531558634,7.7946,128.32,128.29,14.52975728]
[1744531559035,7.794,128.33,128.3,7.7953]
[1744531559331,7.84844338,128.33,128.31,6.73365728]
[1744531559537,0.05444338,128.33,128.31,6.73365728]
[1744531560236,0.05444338,128.33,128.31,14.52825728]
[1744531560438,0.05444338,128.33,128.31,6.73365728]
[1744531560840,646.1,128.38,128.34,6.73365728]
[1744531561036,28.68,128.38,128.34,6.73365728]
[1744531561441,372.80145728,128.4,128.34,6.73365728]
[1744531561640,7.7899,128.4,128.36,14.52555728]
[1744531561840,6.73365728,128.43,128.36,6.73365728]
[1744531562043,28.62,128.43,128.4,6.73365728]
[1744531562345,72.43695497,128.45,128.42,14.52185728]
[1744531562742,72.43695497,128.45,128.42,6.73365728]
[1744531562939,72.43695497,128.45,128.42,14.52175728]
[1744531563143,72.4961149,128.45,128.43,6.73365728]
[1744531563336,72.4961149,128.45,128.42,7.8409977]
[1744531563536,72.4961149,128.45,128.42,14.57465498]
[1744531563942,79.22977218,128.45,128.42,0.0528977]
[1744531564145,6.79281721,128.45,128.42,0.0528977]
[1744531564448,0.05915993,128.45,128.42,0.0528977]
[1744531564746,0.05915993,128.45,128.42,6.78655498]
[1744531564947,6.79281721,128.45,128.42,0.0528977]
[1744531565148,7.7877,128.43,128.42,0.0528977]
[1744531565844,6.79281721,128.45,128.42,0.0528977]
[1744531566044,6.73365728,128.43,128.38,6.73365728]
[1744531566449,11.02225728,128.43,128.38,6.73365728]
[1744531566651,7.7893,128.41,128.38,6.73365728]
[1744531567149,7.84823175,128.41,128.38,6.78780677]
[1744531567351,7.84823175,128.41,128.38,0.05414949]
[1744531569352,7.84823175,128.41,128.38,7.84474949]
[1744531569551,7.84823175,128.41,128.38,0.05414949]
[1744531570652,0.05893175,128.41,128.38,0.05414949]
[1744531571251,0.05893175,128.41,128.38,7.84444949]
[1744531572250,0.05893175,128.41,128.38,0.05414949]
[1744531572747,0.05893175,128.41,128.38,7.84484949]
[1744531575457,0.05893175,128.41,128.39,7.7897]
[1744531575953,0.05893175,128.41,128.4,7.7895]
[1744531581968,0.05893175,128.41,128.38,0.05414949]
[1744531582465,0.05893175,128.41,128.38,7.84434949]
[1744531582666,0.05893175,128.41,128.38,0.05414949]
[1744531582866,0.05893175,128.41,128.38,10.57131463]
[1744531583668,0.05893175,128.41,128.39,2.1556]
[1744531583864,0.05893175,128.41,128.4,28.58]
[1744531584170,0.05893175,128.41,128.4,36.3695]
[1744531585062,28.58,128.48,128.4,39.09716514]
[1744531585464,7.7856,128.47,128.4,39.09716514]
[1744531585666,7.7856,128.47,128.43,7.7873]
[1744531585870,36.3649,128.48,128.42,10.51716514]
[1744531586273,0.05803424,128.46,128.44,0.0589405]
[1744531586768,0.05803424,128.46,128.44,10.57610564]
[1744531587373,0.05803424,128.46,128.45,7.7861]
[1744531589173,0.05803424,128.46,128.44,0.0589405]
[1744531589869,0.05803424,128.46,128.44,6.78514284]
[1744531590276,0.05803424,128.46,128.45,7.7865]
[1744531592984,0.05803424,128.46,128.44,14.57194284]
[1744531593278,0.05803424,128.46,128.44,7.8457405]
[1744531594583,0.05803424,128.46,128.45,7.7865]
[1744531595582,0.05803424,128.46,128.44,7.8457405]
[1744531596885,0.05803424,128.46,128.45,7.7865]
[1744531597186,0.05803424,128.46,128.44,0.0589405]
[1744531597387,0.05803424,128.46,128.44,7.8456405]
[1744531598988,0.05803424,128.46,128.44,0.0589405]
[1744531599691,0.05803424,128.46,128.44,7.8456405]
[1744531600692,0.05803424,128.46,128.45,7.7865]
[1744531600989,0.05803424,128.46,128.44,0.0589405]
[1744531601895,0.05803424,128.46,128.44,7.8456405]
[1744531603594,0.05803424,128.46,128.45,7.7865]
[1744531608401,0.05803424,128.46,128.44,0.0589405]
[1744531609597,7.84403424,128.46,128.44,0.0589405]
[1744531611603,7.84403424,128.46,128.44,7.8460405]
[1744531611903,7.84403424,128.46,128.44,0.0589405]
[1744531612197,7.7865,128.45,128.44,0.0589405]
[1744531613898,6.78423658,128.46,128.44,0.0589405]
[1744531615406,7.7865,128.45,128.44,0.0589405]
[1744531615600,0.05803424,128.46,128.44,0.0589405]
[1744531616206,7.84423424,128.46,128.44,0.0589405]
[1744531617911,6.72620234,128.45,128.37,3.51072914]
[1744531618110,6.72620234,128.43,128.38,35.38620234]
[1744531618510,6.72620234,128.41,128.38,28.66]
[1744531618714,6.72620234,128.39,128.35,36.64312861]
[1744531619109,0.05801833,128.38,128.36,7.84400652]
[1744531619714,0.05801833,128.38,128.37,7.7913]
[1744531625516,6.72620234,128.43,128.37,6.72620234]
[1744531625717,6.72620234,128.43,128.39,6.72620234]
[1744531625916,8.73680234,128.45,128.41,7.7888]
[1744531626117,8.73680234,128.45,128.39,6.72620234]
[1744531626319,8.73680234,128.45,128.39,35.22620234]
[1744531626612,0.05604043,128.43,128.41,0.05249482]
[1744531628514,6.78224277,128.43,128.41,0.05249482]
[1744531629008,7.7883,128.42,128.41,0.05249482]
[1744531634619,36.34404043,128.43,128.41,0.05249482]
[1744531634823,36.34404043,128.43,128.41,6.77869716]
[1744531635026,7.84404043,128.43,128.41,6.77869716]
[1744531635224,0.05604043,128.43,128.41,14.56759716]
[1744531636928,0.05604043,128.43,128.41,6.77869716]
[1744531637929,0.05604043,128.43,128.41,0.05249482]
[1744531638526,7.84424043,128.43,128.41,0.05249482]
[1744531640030,7.84424043,128.43,128.41,7.84139482]
[1744531640334,7.84424043,128.43,128.41,0.05249482]
[1744531640831,0.05604043,128.43,128.41,0.05249482]
[1744531641133,0.05604043,128.43,128.41,6.77869716]
[1744531641328,0.05604043,128.43,128.42,7.7883]
[1744531644233,0.05604043,128.43,128.42,36.2883]
[1744531646931,0.05604043,128.43,128.41,0.05249482]
[1744531647132,6.78224277,128.43,128.41,0.05249482]
[1744531647636,0.05604043,128.43,128.41,0.05249482]
[1744531648137,6.78224277,128.43,128.41,0.05249482]
[1744531648336,7.7883,128.42,128.41,0.05249482]
[1744531648644,6.78224277,128.43,128.41,0.05249482]
[1744531648939,0.05604043,128.43,128.41,0.05249482]
[1744531649137,0.05604043,128.43,128.42,6.72620234]
[1744531649737,0.05604043,128.43,128.42,14.51450234]
[1744531649936,2.0176,128.49,128.42,35.22620234]
[1744531650132,2.0176,128.49,128.46,6.72620234]
[1744531651039,2.0731949,128.49,128.46,6.78602801]
[1744531651339,2.0731949,128.49,128.46,0.05982567]
[1744531651734,9.8575949,128.49,128.46,0.05982567]
[1744531652636,7.7847,128.48,128.46,0.05982567]
[1744531655440,9.8574949,128.49,128.46,7.84562567]
[1744531655632,2.0731949,128.49,128.46,0.05982567]
[1744531657138,7.7847,128.48,128.46,0.05982567]
[1744531659142,7.7853,128.47,128.46,0.05982567]
[1744531661045,7.7849,128.48,128.46,0.05982567]
[1744531667850,7.8398949,128.49,128.46,7.84552567]
[1744531673252,7.8398949,128.49,128.46,14.56844592]
[1744531680063,0.0555949,128.49,128.46,14.56844592]
[1744531681063,7.8396949,128.49,128.46,14.56844592]
[1744531685969,7.8396949,128.49,128.46,7.84552567]
[1744531686263,7.785,128.48,128.46,0.05982567]
[1744531686463,6.72292025,128.47,128.46,0.05982567]
[1744531686871,14.50822025,128.47,128.46,0.05982567]
[1744531687469,6.72292025,128.47,128.46,0.05982567]
[1744531688369,9.7896,128.48,128.46,0.05982567]
[1744531688570,2.0047,128.48,128.46,0.05982567]
[1744531688868,28.3355949,128.49,128.46,6.78274592]
[1744531689069,0.0555949,128.49,128.46,6.78274592]
[1744531689570,0.0555949,128.49,128.46,14.56824592]
[1744531690974,7.8397949,128.49,128.46,14.56824592]
[1744531691273,7.8397949,128.49,128.46,7.84532567]
[1744531693769,7.8397949,128.49,128.46,0.05982567]
[1744531693975,7.7847,128.48,128.46,0.05982567]
[1744531698981,7.7853,128.47,128.46,0.05982567]
[1744531700376,14.50822025,128.47,128.46,0.05982567]
[1744531700583,6.72292025,128.47,128.42,36.068]
[1744531700977,6.72292025,128.47,128.42,28.28]
[1744531701383,7.7862,128.46,128.43,7.7876]
[1744531701583,7.84185587,128.46,128.43,7.84562177]
[1744531702083,7.84185587,128.46,128.43,14.56854202]
[1744531703679,0.05565587,128.46,128.43,0.05802177]
[1744531704086,2.14685587,128.46,128.43,0.05802177]
[1744531704783,7.7871,128.44,128.43,0.05802177]
[1744531706681,0.05565587,128.46,128.43,0.05802177]
[1744531706877,0.05565587,128.46,128.44,6.72292025]
[1744531707580,0.05565587,128.46,128.45,7.7865]
[1744531709684,0.05565587,128.46,128.45,36.0665]
[1744531712888,7.7831,128.51,128.47,7.7847]
[1744531713089,7.7831,128.51,128.45,28.28]
[1744531713090,7.7831,128.51,128.48,6.72292025]
[1744531713588,7.7831,128.51,128.48,14.50762025]
[1744531713885,72.43695497,128.61,128.5,6.72292025]
[1744531714082,1.9987,128.58,128.53,6.72292025]
[1744531714282,6.72292025,128.56,128.51,35.00292025]
[1744531714587,7.7808,128.55,128.53,6.72292025]
[1744531715087,7.8341642,128.55,128.53,6.77399897]
[1744531715482,0.0533642,128.55,128.53,6.77399897]
[1744531717284,0.0533642,128.55,128.53,0.05107872]
[1744531717684,14.50392025,128.54,128.53,0.05107872]
[1744531718385,7.781,128.54,128.53,0.05107872]
[1744531718989,6.72292025,128.54,128.48,28.26]
[1744531719189,6.72292025,128.5,128.45,34.98292025]
[1744531719889,7.7844,128.49,128.45,42.76922025]
[1744531720089,0.05383277,128.48,128.46,0.04970786]
[1744531722294,7.83893277,128.48,128.46,0.04970786]
[1744531722688,0.05383277,128.48,128.46,0.04970786]
[1744531723090,7.7853,128.47,128.46,0.04970786]
[1744531723695,7.7871,128.45,128.42,28.26]
[1744531723893,28.26,128.48,128.42,28.26]
[1744531724393,7.7855,128.47,128.42,28.26]
[1744531724587,2.0441,128.52,128.43,10.50482012]
[1744531724790,7.7838,128.5,128.46,7.7858]
[1744531724989,0.05831831,128.49,128.45,38.78482012]
[1744531725189,28.28,128.52,128.47,0.05944285]
[1744531725394,0.04981646,128.48,128.47,0.05944285]
[1744531725593,7.7833,128.51,128.47,7.84434285]
[1744531725785,0.05223468,128.49,128.47,7.84434285]
[1744531732104,0.05223468,128.49,128.47,0.05944285]
[1744531732505,7.7847,128.48,128.47,0.05944285]
[1744531732705,0.05223468,128.49,128.47,0.05944285]
[1744531734207,7.83633468,128.49,128.47,0.05944285]
[1744531735811,0.05223468,128.49,128.47,0.05944285]
[1744531736008,0.05223468,128.49,128.47,7.84434285]
[1744531738913,0.05223468,128.49,128.48,7.7847]
[1744531739414,0.05223468,128.49,128.47,0.05944285]
[1744531740015,0.05223468,128.49,128.47,7.84444285]
[1744531740619,0.05223468,128.49,128.47,0.05944285]
[1744531741618,7.83633468,128.49,128.47,0.05944285]
[1744531742518,0.05223468,128.49,128.47,0.05944285]
[1744531744219,7.83643468,128.49,128.47,0.05944285]
[1744531746224,7.7847,128.48,128.47,0.05944285]
[1744531746424,6.72217932,128.48,128.43,35.00217932]
[1744531746928,7.7861,128.46,128.43,42.78957932]
[1744531747425,7.83799969,128.46,128.43,42.84357131]
[1744531748725,0.05189969,128.46,128.43,6.77617131]
[1744531749125,7.7869,128.45,128.43,6.77617131]
[1744531750224,7.7871,128.44,128.43,6.77617131]
[1744531750929,7.7868,128.45,128.43,6.77617131]
[1744531751125,0.05189969,128.46,128.43,6.77617131]
[1744531751829,7.83829969,128.46,128.43,6.77617131]
[1744531752627,7.83829969,128.46,128.43,14.56367131]
[1744531754828,7.83829969,128.46,128.43,6.77617131]
[1744531755230,7.7866,128.45,128.43,6.77617131]
[1744531758536,7.7871,128.44,128.43,0.05399199]
[1744531759636,6.72217932,128.44,128.39,6.72217932]
[1744531760135,7.7891,128.41,128.39,6.72217932]
[1744531760634,7.8488478,128.41,128.39,6.78079973]
[1744531761236,7.7895,128.4,128.39,0.05862041]
[1744531761935,14.51167932,128.4,128.39,0.05862041]
[1744531762135,7.791,128.38,128.36,6.72217932]
[1744531763136,7.84855485,128.38,128.36,6.76939578]
[1744531763336,0.05755485,128.38,128.36,6.76939578]
[1744531763539,0.05755485,128.38,128.36,0.04721646]
[1744531763836,6.77973417,128.38,128.36,0.04721646]
[1744531764539,7.7913,128.37,128.36,0.04721646]
[1744531764739,6.77973417,128.38,128.33,6.72217932]
[1744531765040,7.793,128.35,128.33,6.72217932]
[1744531765939,7.85189913,128.35,128.33,6.72217932]
[1744531766340,7.85189913,128.35,128.31,46.96687932]
[1744531766534,7.7935,128.34,128.31,35.00217932]
[1744531768139,7.85159913,128.35,128.31,42.79687932]
[1744531768940,7.7933,128.34,128.31,42.79687932]
[1744531770038,0.05889913,128.35,128.32,7.7943]
[1744531770846,7.85179913,128.35,128.31,42.79697932]
[1744531773249,7.7932,128.34,128.31,42.79697932]
[1744531775544,7.85169913,128.35,128.32,7.7943]
[1744531776240,7.85169913,128.35,128.31,42.79697932]
[1744531777246,7.7933,128.34,128.31,42.79697932]
[1744531777940,6.78107845,128.35,128.31,6.72217932]
[1744531778145,6.72217932,128.33,128.27,16.56737932]
[1744531778345,6.72217932,128.33,128.27,14.51927932]
[1744531778545,0.05474735,128.31,128.27,14.51927932]
[1744531779346,7.7957,128.3,128.27,14.51927932]
[1744531780043,7.7967,128.29,128.27,6.72217932]
[1744531780948,0.05474735,128.31,128.27,6.72217932]
[1744531782343,7.84974735,128.31,128.28,7.7965]
[1744531783246,0.05474735,128.31,128.28,7.7965]
[1744531784148,7.85004735,128.31,128.28,7.7965]
[1744531787249,0.05474735,128.31,128.28,7.7965]
[1744531788049,7.84974735,128.31,128.28,7.7965]
[1744531796849,6.77692667,128.31,128.26,6.72217932]
[1744531798243,7.7965,128.29,128.26,6.72217932]
[1744531798449,7.7965,128.29,128.26,14.51997932]
[1744531798953,7.7965,128.29,128.26,7.7978]
[1744531799549,7.7965,128.29,128.27,7.7974]
[1744531799950,7.85478345,128.29,128.27,7.7974]